[Event "Cracovia Festival-A 2023"]
[Site "Krakow"]
[Date "2023.12.28"]
[Round "2.15"]
[White "Kulkarni Bhakti"]
[Black "Buchenau, Frank"]
[Result "1-0"]
[ECO "C11"]
[WhiteElo "2364"]
[BlackElo "2135"]
[Annotator "ChessBase"]
[PlyCount "65"]
[EventDate "2023.12.24"]
[EventType "swiss"]
[EventCountry "POL"]
[SourceTitle "playchess.com"]
[Source "ChessBase"]
[SourceQuality "1"]
[TimeControl "40/5400+30:1800+30"]

1. e4 {[%emt 0:03:19]} e6 {[%emt 0:00:21]} 2. d4 {[%emt 0:00:58]} d5 {[%emt 0:00:07]} 3. Nc3 {[%emt 0:00:20]} Nf6 {[%emt 0:00:45]} 4. e5 {[%emt 0:00:48]} Nfd7 {[%emt 0:00:08]} 5. f4 {[%emt 0:00:25]} c5 {[%emt 0:00:09]} 6. Nf3 {[%emt 0:00:19]} Nc6 {[%emt 0:03:57]} 7. Be3 {[%emt 0:01:57]} Be7 {[%emt 0:06:00]} 8. a3 {[%emt 0:04:38]} O-O {[%emt 0:01:00]} 9. Bd3 {[%emt 0:01:21]} f6 10. dxc5 {[%emt 0:17:37]} fxe5 {[%emt 0:11:01]} 11. fxe5 {[%emt 0:00:31]} Rxf3 {[%emt 0:25:17]} 12. gxf3 {[%emt 0:20:34]} Ndxe5 {[%emt 0:19:48]} 13. Bf2 {[%emt 0:05:57]} Qf8 {[%emt 0:05:53]} 14. Be2 {[%emt 0:00:32]} Bxc5 {[%emt 0:05:11]} 15. Bxc5 {[%emt 0:01:30]} Qxc5 {[%emt 0:00:07]} 16. Qd2 {[%emt 0:04:40]} Bd7 {[%emt 0:03:29]} 17. O-O-O {[%emt 0:03:20]} Rf8 {[%emt 0:01:18]} 18. Na4 {[%emt 0:05:34]} Qd6 {[%emt 0:07:31]} 19. Rhg1 {[%emt 0:07:44]} Ne7 {[%emt 0:04:20]} 20. Nc3 {[%emt 0:03:10]} N7g6 {[%emt 0:00:41]} 21. Qe3 {[%emt 0:00:51]} Qb6 {[%emt 0:01:57]} 22. Qxb6 {[%emt 0:05:33]} axb6 {[%emt 0:00:02]} 23. Rgf1 {[%emt 0:00:33]} Nf4 {[%emt 0:00:26]} 24. Bb5 {[%emt 0:00:45]} Bc6 {[%emt 0:00:46]} 25. Rde1 {[%emt 0:00:37]} Rf5 {[%emt 0:00:26]} 26. a4 {[%emt 0:00:47]} Kf7 {[%emt 0:00:18]} 27. Kd2 {[%emt 0:00:56]} Rh5 {[%emt 0:00:34]} 28. Kd1 {[%emt 0:01:25]} Kf6 {[%emt 0:00:18]} 29. Ne2 {[%emt 0:01:53]} Ng2 {[%emt 0:01:39]} 30. Ng3 {[%emt 0:00:34]} Rh4 {[%emt 0:00:18]} 31. Re2 {[%emt 0:00:50]} Bxb5 {[%emt 0:00:15]} 32. axb5 {[%emt 0:00:12]} Ra4 {[%emt 0:00:26]} 33. Rxg2 {[%emt 0:00:13]} 1-0

[Event "Cracovia Festival-A 2023"]
[Site "Krakow"]
[Date "2023.12.28"]
[Round "2.16"]
[White "Jedraszek, Pawel"]
[Black "Akhvlediani, Irakli"]
[Result "0-1"]
[ECO "E70"]
[WhiteElo "2124"]
[BlackElo "2359"]
[Annotator "ChessBase"]
[PlyCount "144"]
[EventDate "2023.12.24"]
[EventType "swiss"]
[EventCountry "POL"]
[SourceTitle "playchess.com"]
[Source "ChessBase"]
[SourceQuality "1"]
[TimeControl "40/5400+30:1800+30"]

1. d4 {[%emt 0:00:05]} Nf6 {[%emt 0:00:08]} 2. c4 {[%emt 0:00:15]} g6 {[%emt 0:01:46]} 3. Nc3 {[%emt 0:00:32]} Bg7 {[%emt 0:00:03]} 4. e4 {[%emt 0:00:39]} O-O {[%emt 0:00:08]} 5. h3 {[%emt 0:00:56]} c5 {[%emt 0:02:30]} 6. d5 {[%emt 0:01:39]} e6 {[%emt 0:01:16]} 7. Bd3 {[%emt 0:03:25]} exd5 {[%emt 0:00:45]} 8. exd5 {[%emt 0:00:48]} Re8+ {[%emt 0:00:21]} 9. Nge2 {[%emt 0:01:05]} d6 {[%emt 0:03:33]} 10. O-O {[%emt 0:03:30]} Nfd7 {[%emt 0:08:47]} 11. Ng3 {[%emt 0:12:32]} Ne5 {[%emt 0:02:02]} 12. Be2 {[%emt 0:08:30]} f5 {[%emt 0:00:21]} 13. f4 {[%emt 0:09:43]} Ned7 {[%emt 0:00:07]} 14. a4 {[%emt 0:02:11]} Qh4 {[%emt 0:19:55]} 15. Nh1 {[%emt 0:02:40]} Bd4+ {[%emt 0:03:01]} 16. Kh2 {[%emt 0:04:04]} a6 {[%emt 0:03:15]} 17. a5 {[%emt 0:07:41]} Nf6 {[%emt 0:06:38]} 18. g3 {[%emt 0:00:26]} Qh6 {[%emt 0:00:10]} 19. Nf2 {[%emt 0:03:22]} Bxc3 {[%emt 0:29:38]} 20. bxc3 {[%emt 0:00:03]} Ne4 {[%emt 0:00:16]} 21. Nxe4 {[%emt 0:03:10]} Rxe4 {[%emt 0:00:04]} 22. Bf3 {[%emt 0:03:25]} Re8 {[%emt 0:00:17]} 23. Re1 {[%emt 0:03:33]} Qf8 {[%emt 0:00:14]} 24. Ra2 {[%emt 0:03:24]} Nd7 {[%emt 0:01:33]} 25. Rxe8 {[%emt 0:03:26]} Qxe8 {[%emt 0:00:02]} 26. Re2 {[%emt 0:00:12]} Qf8 {[%emt 0:01:01]} 27. g4 {[%emt 0:03:29]} Nf6 {[%emt 0:01:20]} 28. g5 {[%emt 0:00:48]} Ne4 {[%emt 0:00:13]} 29. Qe1 {[%emt 0:04:19]} Bd7 {[%emt 0:00:49]} 30. Bxe4 {[%emt 0:02:47]} fxe4 {[%emt 0:00:04]} 31. Rxe4 {[%emt 0:00:07]} Qf5 {[%emt 0:01:22]} 32. Qe3 {[%emt 0:00:34]} b6 {[%emt 0:01:37]} 33. axb6 {[%emt 0:05:40]} Rb8 {[%emt 0:00:03]} 34. Qf3 {[%emt 0:01:46]} Rxb6 {[%emt 0:00:04]} 35. Re2 {[%emt 0:04:19]} Rb1 {[%emt 0:02:09]} 36. Qe3 {[%emt 0:01:24]} a5 {[%emt 0:01:28]} 37. Ra2 {[%emt 0:01:41]} a4 {[%emt 0:00:25]} 38. Kg2 {[%emt 0:00:22]} Kf8 {[%emt 0:06:26]} 39. Kh2 {[%emt 0:00:47]} Rb8 {[%emt 0:00:51]} 40. Rf2 {[%emt 0:00:00]} Re8 {[%emt 0:00:00]} 41. Qf3 {[%emt 0:05:43]} Re1 {[%emt 0:05:21]} 42. Bd2 {[%emt 0:01:38]} Rb1 {[%emt 0:00:22]} 43. Qe3 {[%emt 0:03:08]} a3 {[%emt 0:14:19]} 44. Bc1 {[%emt 0:02:20]} Ra1 {[%emt 0:00:03]} 45. Re2 {[%emt 0:02:26]} Kg8 {[%emt 0:00:07]} 46. Kg2 {[%emt 0:03:02]} h5 {[%emt 0:17:23]} 47. Kh2 {[%emt 0:07:26]} h4 {[%emt 0:00:07]} 48. Kg2 {[%emt 0:00:30]} Kh8 {[%emt 0:01:33]} 49. Kh2 {[%emt 0:00:27]} Kg8 {[%emt 0:00:01]} 50. Kg2 {[%emt 0:00:07]} Qf7 {[%emt 0:01:00]} 51. Kh2 {[%emt 0:01:53]} a2 {[%emt 0:00:29]} 52. Rb2 {[%emt 0:00:33]} Qf5 {[%emt 0:00:32]} 53. Kg2 {[%emt 0:00:59]} Kf7 {[%emt 0:00:20]} 54. Re2 {[%emt 0:00:44]} Kg8 {[%emt 0:00:11]} 55. Rb2 {[%emt 0:00:01]} Qf8 {[%emt 0:00:37]} 56. Kh2 {[%emt 0:01:32]} Qe8 {[%emt 0:00:44]} 57. Qd2 {[%emt 0:00:43]} Qa8 {[%emt 0:00:01]} 58. Kg2 {[%emt 0:03:15]} Bf5 {[%emt 0:00:05]} 59. Kf3 {[%emt 0:01:16]} Kf7 {[%emt 0:00:18]} 60. Ke3 {[%emt 0:02:57]} Qa7 {[%emt 0:00:10]} 61. Kf3 {[%emt 0:00:24]} Rxc1 {[%emt 0:00:40]} 62. Rxa2 {[%emt 0:00:11]} Qxa2 {[%emt 0:00:12]} 63. Qxc1 {[%emt 0:00:53]} Qxc4 {[%emt 0:00:11]} 64. Qa3 {[%emt 0:00:31]} Qxd5+ {[%emt 0:00:05]} 65. Kf2 {[%emt 0:00:09]} Qd2+ {[%emt 0:00:55]} 66. Kf3 {[%emt 0:00:14]} Ke6 {[%emt 0:00:29]} 67. Qa7 {[%emt 0:00:56]} Qxc3+ {[%emt 0:00:05]} 68. Kf2 {[%emt 0:00:08]} Qd2+ {[%emt 0:00:17]} 69. Kf3 {[%emt 0:00:05]} Qd3+ {[%emt 0:00:49]} 70. Kf2 {[%emt 0:00:08]} Qc2+ {[%emt 0:00:01]} 71. Kf3 {[%emt 0:00:33]} Qe4+ {[%emt 0:00:24]} 72. Kf2 {[%emt 0:00:05]} Qxf4+ {[%emt 0:00:03]} 0-1

[Event "Cracovia Festival-A 2023"]
[Site "Krakow"]
[Date "2023.12.28"]
[Round "2.17"]
[White "Anwesh, Upadhyaya"]
[Black "Manko, Mariia"]
[Result "1-0"]
[ECO "A20"]
[WhiteElo "2350"]
[BlackElo "2128"]
[Annotator "ChessBase"]
[PlyCount "73"]
[EventDate "2023.12.24"]
[EventType "swiss"]
[EventCountry "POL"]
[SourceTitle "playchess.com"]
[Source "ChessBase"]
[SourceQuality "1"]
[TimeControl "40/5400+30:1800+30"]

1. c4 {[%emt 0:15:05]} e5 {[%emt 0:00:08]} 2. g3 {[%emt 0:00:06]} Nf6 {[%emt 0:00:14]} 3. Bg2 {[%emt 0:00:13]} c6 {[%emt 0:00:14]} 4. d4 {[%emt 0:00:55]} e4 {[%emt 0:00:31]} 5. Nc3 {[%emt 0:00:26]} d5 {[%emt 0:14:32]} 6. Bg5 {[%emt 0:03:03]} Bb4 {[%emt 0:00:31]} 7. Nh3 {[%emt 0:03:01]} dxc4 {[%emt 0:11:02]} 8. O-O {[%emt 0:00:48]} Bxc3 {[%emt 0:01:45]} 9. bxc3 {[%emt 0:00:04]} h6 {[%emt 0:16:42]} 10. Bxf6 {[%emt 0:15:06]} Qxf6 {[%emt 0:01:00]} 11. a4 {[%emt 0:00:12]} O-O {[%emt 0:05:11]} 12. a5 {[%emt 0:01:07]} Na6 {[%emt 0:05:25]} 13. Qa4 {[%emt 0:05:39]} Be6 {[%emt 0:25:52]} 14. Nf4 {[%emt 0:01:34]} Bd5 {[%emt 0:08:07]} 15. f3 {[%emt 0:10:37]} e3 {[%emt 0:00:41]} 16. Rfb1 {[%emt 0:01:54]} Rab8 {[%emt 0:02:14]} 17. Nxd5 {[%emt 0:06:26]} cxd5 {[%emt 0:00:07]} 18. f4 {[%emt 0:00:08]} Nc7 {[%emt 0:00:25]} 19. Qa3 {[%emt 0:03:03]} Qc6 {[%emt 0:01:43]} 20. Qb4 {[%emt 0:07:30]} Rfe8 {[%emt 0:02:34]} 21. Bh3 {[%emt 0:02:21]} b5 {[%emt 0:00:30]} 22. axb6 {[%emt 0:01:07]} Rxb6 {[%emt 0:00:42]} 23. Qc5 {[%emt 0:03:27]} Qb7 {[%emt 0:00:33]} 24. Rxb6 {[%emt 0:03:14]} axb6 {[%emt 0:00:07]} 25. Qd6 {[%emt 0:01:08]} b5 {[%emt 0:00:56]} 26. Bg2 {[%emt 0:00:46]} Re6 {[%emt 0:00:36]} 27. Qc5 {[%emt 0:00:57]} Rb6 {[%emt 0:00:29]} 28. Qe7 {[%emt 0:01:13]} b4 {[%emt 0:00:24]} 29. cxb4 {[%emt 0:02:27]} Rxb4 {[%emt 0:00:02]} 30. Qxe3 {[%emt 0:00:28]} Rb1+ {[%emt 0:00:08]} 31. Rxb1 {[%emt 0:00:03]} Qxb1+ {[%emt 0:00:02]} 32. Kf2 {[%emt 0:00:04]} Qb2 {[%emt 0:00:21]} 33. Qe5 {[%emt 0:03:27]} Qb7 {[%emt 0:02:29]} 34. Qe7 {[%emt 0:02:16]} c3 {[%emt 0:00:30]} 35. Qc5 {[%emt 0:00:34]} Qb2 {[%emt 0:00:34]} 36. Qxc7 {[%emt 0:01:24]} g6 {[%emt 0:00:32]} 37. Bxd5 {[%emt 0:00:28]} 1-0

[Event "Cracovia Festival-A 2023"]
[Site "Krakow"]
[Date "2023.12.28"]
[Round "2.18"]
[White "Krzyzanowski, Patryk"]
[Black "Sernecki, Franciszek"]
[Result "0-1"]
[ECO "D37"]
[WhiteElo "2102"]
[BlackElo "2325"]
[Annotator "ChessBase"]
[PlyCount "76"]
[EventDate "2023.12.24"]
[EventType "swiss"]
[EventCountry "POL"]
[SourceTitle "playchess.com"]
[Source "ChessBase"]
[SourceQuality "1"]
[TimeControl "40/5400+30:1800+30"]

1. d4 {[%emt 0:00:05]} Nf6 {[%emt 0:00:30]} 2. c4 {[%emt 0:00:20]} e6 {[%emt 0:00:30]} 3. Nf3 {[%emt 0:00:21]} d5 {[%emt 0:00:10]} 4. Nc3 {[%emt 0:03:07]} dxc4 {[%emt 0:01:07]} 5. Qa4+ {[%emt 0:12:03]} c6 {[%emt 0:01:09]} 6. Qxc4 {[%emt 0:00:17]} b5 {[%emt 0:00:08]} 7. Qb3 {[%emt 0:04:28]} a6 {[%emt 0:07:37]} 8. Bg5 {[%emt 0:12:38]} c5 {[%emt 0:20:46]} 9. dxc5 {[%emt 0:09:28]} Bxc5 {[%emt 0:04:33]} 10. Ne4 {[%emt 0:04:49]} Be7 {[%emt 0:03:27]} 11. Rd1 {[%emt 0:01:04]} Qa5+ {[%emt 0:05:10]} 12. Bd2 {[%emt 0:00:32]} Qb6 {[%emt 0:00:44]} 13. Nxf6+ {[%emt 0:01:41]} Bxf6 {[%emt 0:01:25]} 14. Bb4 {[%emt 0:01:05]} Nc6 {[%emt 0:03:35]} 15. Bd6 {[%emt 0:08:46]} Qa5+ {[%emt 0:08:34]} 16. Rd2 {[%emt 0:01:03]} Bb7 {[%emt 0:01:58]} 17. e3 {[%emt 0:15:45]} Rd8 {[%emt 0:05:07]} 18. Bc5 {[%emt 0:00:23]} Rd5 {[%emt 0:06:10]} 19. Qc2 {[%emt 0:07:35]} Qxa2 {[%emt 0:07:03]} 20. Rxd5 {[%emt 0:01:21]} exd5 {[%emt 0:01:12]} 21. Nd4 {[%emt 0:04:09]} Qa1+ {[%emt 0:04:23]} 22. Ke2 Qa5 {[%emt 0:06:19]} 23. f3 {[%emt 0:05:12]} Qc7 {[%emt 0:04:06]} 24. Nf5 {[%emt 0:02:02]} Nb4 {[%emt 0:00:32]} 25. Qc1 {[%emt 0:00:42]} Na2 {[%emt 0:00:11]} 26. Qc2 {[%emt 0:00:09]} Nc3+ {[%emt 0:00:13]} 27. bxc3 {[%emt 0:01:52]} Qxc5 {[%emt 0:00:04]} 28. Kf2 {[%emt 0:00:59]} O-O {[%emt 0:01:44]} 29. Bd3 {[%emt 0:00:43]} Rc8 {[%emt 0:00:35]} 30. Rc1 {[%emt 0:01:35]} Bxc3 {[%emt 0:04:36]} 31. Qe2 {[%emt 0:01:06]} g6 {[%emt 0:00:43]} 32. Nh6+ {[%emt 0:00:14]} Kg7 {[%emt 0:00:26]} 33. Ng4 {[%emt 0:00:03]} h5 {[%emt 0:00:58]} 34. Ne5 {[%emt 0:00:02]} d4 {[%emt 0:00:26]} 35. f4 {[%emt 0:00:13]} dxe3+ {[%emt 0:00:24]} 36. Kg3 {[%emt 0:00:12]} Qd6 {[%emt 0:01:01]} 37. Qxe3 {[%emt 0:01:09]} Bd4 {[%emt 0:00:21]} 38. Qd2 {[%emt 0:01:09]} Rxc1 {[%emt 0:00:35]} 0-1

[Event "Cracovia Festival-A 2023"]
[Site "Krakow"]
[Date "2023.12.28"]
[Round "2.19"]
[White "Polak, Tomas"]
[Black "Meers, Hubert"]
[Result "1-0"]
[ECO "E16"]
[WhiteElo "2517"]
[BlackElo "2218"]
[Annotator "ChessBase"]
[PlyCount "89"]
[EventDate "2023.12.24"]
[EventType "swiss"]
[EventCountry "POL"]
[SourceTitle "playchess.com"]
[Source "ChessBase"]
[SourceQuality "1"]
[TimeControl "40/5400+30:1800+30"]

1. d4 {[%emt 0:00:04]} Nf6 {[%emt 0:03:07]} 2. c4 {[%emt 0:00:05]} e6 {[%emt 0:00:03]} 3. Nf3 {[%emt 0:00:36]} b6 {[%emt 0:00:05]} 4. g3 {[%emt 0:00:10]} Bb7 {[%emt 0:00:03]} 5. Bg2 {[%emt 0:00:08]} Bb4+ {[%emt 0:00:02]} 6. Bd2 {[%emt 0:00:12]} c5 {[%emt 0:00:04]} 7. Bxb4 {[%emt 0:01:14]} cxb4 {[%emt 0:00:08]} 8. O-O {[%emt 0:00:46]} O-O {[%emt 0:00:03]} 9. a3 {[%emt 0:05:05]} bxa3 {[%emt 0:00:04]} 10. Rxa3 {[%emt 0:00:17]} a5 {[%emt 0:00:34]} 11. Nbd2 {[%emt 0:06:25]} d6 {[%emt 0:00:07]} 12. e3 {[%emt 0:03:18]} Qc7 {[%emt 0:02:52]} 13. Qe2 {[%emt 0:05:31]} Ne4 {[%emt 0:07:54]} 14. Rc1 {[%emt 0:13:15]} Nd7 {[%emt 0:07:52]} 15. Rb3 {[%emt 0:06:37]} Nxd2 {[%emt 0:02:13]} 16. Nxd2 {[%emt 0:01:19]} Bxg2 {[%emt 0:00:43]} 17. Kxg2 {[%emt 0:00:05]} Rfc8 {[%emt 0:01:01]} 18. Qf3 {[%emt 0:06:55]} Qc6 {[%emt 0:07:41]} 19. Rcc3 {[%emt 0:03:01]} Qxf3+ {[%emt 0:08:24]} 20. Kxf3 {[%emt 0:00:27]} Kf8 {[%emt 0:00:06]} 21. Rb5 {[%emt 0:03:13]} Rc7 {[%emt 0:00:15]} 22. Ke2 {[%emt 0:00:59]} Ke7 {[%emt 0:00:34]} 23. Kd3 {[%emt 0:01:59]} h6 {[%emt 0:00:58]} 24. h4 {[%emt 0:01:56]} Rac8 {[%emt 0:04:34]} 25. g4 {[%emt 0:00:39]} g6 {[%emt 0:02:20]} 26. Rc1 {[%emt 0:13:42]} Rc6 {[%emt 0:08:19]} 27. Ra1 {[%emt 0:01:33]} Nf6 {[%emt 0:07:54]} 28. g5 {[%emt 0:05:05]} Nd7 {[%emt 0:00:43]} 29. b4 {[%emt 0:06:36]} axb4 {[%emt 0:00:28]} 30. gxh6 {[%emt 0:04:31]} Rh8 31. Ra7 {[%emt 0:01:14]} Rxh6 {[%emt 0:05:12]} 32. Nf3 {[%emt 0:01:20]} Rh5 {[%emt 0:07:34]} 33. Rxb4 {[%emt 0:01:10]} Rf5 {[%emt 0:02:51]} 34. d5 {[%emt 0:01:40]} exd5 {[%emt 0:00:32]} 35. Nd4 {[%emt 0:00:17]} dxc4+ {[%emt 0:01:26]} 36. Rxc4 {[%emt 0:00:48]} Rxc4 {[%emt 0:08:11]} 37. Nxf5+ {[%emt 0:00:10]} Ke6 {[%emt 0:02:12]} 38. Ng7+ {[%emt 0:04:46]} Kf6 {[%emt 0:00:03]} 39. Kxc4 {[%emt 0:01:17]} Ne5+ {[%emt 0:00:03]} 40. Kd5 {[%emt 0:00:00]} Kxg7 {[%emt 0:00:00]} 41. Kxd6 {[%emt 0:01:13]} Ng4 {[%emt 0:02:08]} 42. Ra2 {[%emt 0:06:08]} Kf6 {[%emt 0:01:31]} 43. Ra4 Nh6 {[%emt 0:00:39]} 44. Rf4+ {[%emt 0:03:05]} Nf5+ {[%emt 0:00:03]} 45. Kc6 {[%emt 0:00:15]} 1-0

[Event "Cracovia Festival-A 2023"]
[Site "Krakow"]
[Date "2023.12.28"]
[Round "2.20"]
[White "Hryharovich, Aliaksei"]
[Black "Janzelj, Tim"]
[Result "1/2-1/2"]
[ECO "D17"]
[WhiteElo "2195"]
[BlackElo "2441"]
[Annotator "ChessBase"]
[PlyCount "131"]
[EventDate "2023.12.24"]
[EventType "swiss"]
[EventCountry "POL"]
[SourceTitle "playchess.com"]
[Source "ChessBase"]
[SourceQuality "1"]
[TimeControl "40/5400+30:1800+30"]

1. d4 {[%emt 0:00:03]} d5 {[%emt 0:00:09]} 2. Nf3 {[%emt 0:00:39]} Nf6 {[%emt 0:00:11]} 3. c4 {[%emt 0:00:10]} c6 {[%emt 0:00:10]} 4. Nc3 {[%emt 0:00:50]} dxc4 {[%emt 0:00:49]} 5. a4 {[%emt 0:01:09]} Bf5 {[%emt 0:00:11]} 6. Nh4 {[%emt 0:00:09]} e6 {[%emt 0:04:15]} 7. Nxf5 {[%emt 0:00:58]} exf5 {[%emt 0:00:01]} 8. e3 {[%emt 0:00:46]} Bd6 {[%emt 0:00:44]} 9. Bxc4 {[%emt 0:00:29]} O-O {[%emt 0:00:21]} 10. h3 {[%emt 0:05:50]} Re8 {[%emt 0:09:46]} 11. Bd2 {[%emt 0:19:55]} c5 {[%emt 0:11:00]} 12. dxc5 {[%emt 0:14:54]} Bxc5 {[%emt 0:00:03]} 13. Qb3 {[%emt 0:00:47]} Qd7 {[%emt 0:05:27]} 14. O-O-O {[%emt 0:12:32]} Nc6 {[%emt 0:00:29]} 15. Nd5 {[%emt 0:01:07]} Ne4 {[%emt 0:03:19]} 16. Bc3 {[%emt 0:02:10]} Qc8 {[%emt 0:04:44]} 17. Rhf1 {[%emt 0:05:15]} b6 {[%emt 0:06:38]} 18. Qc2 {[%emt 0:06:00]} Qb7 {[%emt 0:10:02]} 19. g4 {[%emt 0:07:36]} a6 {[%emt 0:10:04]} 20. gxf5 {[%emt 0:03:25]} b5 {[%emt 0:01:40]} 21. Rg1 {[%emt 0:01:38]} Bf8 {[%emt 0:01:36]} 22. Bd3 {[%emt 0:13:47]} Nxc3 {[%emt 0:00:49]} 23. Qxc3 {[%emt 0:00:05]} Nb4 {[%emt 0:03:47]} 24. Nf6+ {[%emt 0:00:15]} Kh8 {[%emt 0:00:02]} 25. Kb1 {[%emt 0:00:58]} Rec8 {[%emt 0:14:30]} 26. Qd4 {[%emt 0:01:23]} Qc6 {[%emt 0:00:02]} 27. Be4 {[%emt 0:00:32]} Qxf6 {[%emt 0:00:15]} 28. Qxf6 {[%emt 0:00:09]} gxf6 {[%emt 0:00:02]} 29. Bxa8 {[%emt 0:00:12]} Rxa8 {[%emt 0:00:04]} 30. axb5 {[%emt 0:00:19]} axb5 {[%emt 0:01:33]} 31. Rd7 {[%emt 0:00:08]} Re8 {[%emt 0:10:37]} 32. Rxf7 {[%emt 0:01:12]} Nd5 {[%emt 0:00:39]} 33. Rd7 {[%emt 0:00:59]} Ne7 {[%emt 0:00:33]} 34. Rb7 {[%emt 0:00:22]} Nxf5 {[%emt 0:00:34]} 35. Rxb5 {[%emt 0:00:07]} Nd6 {[%emt 0:00:20]} 36. Rd5 {[%emt 0:01:02]} Ne4 {[%emt 0:00:35]} 37. Rg2 {[%emt 0:00:33]} Rb8 {[%emt 0:01:50]} 38. Kc2 {[%emt 0:00:30]} Nd6 {[%emt 0:00:42]} 39. b3 {[%emt 0:00:33]} Rc8+ {[%emt 0:00:32]} 40. Kb2 {[%emt 0:00:00]} f5 {[%emt 0:00:00]} 41. f3 {[%emt 0:03:30]} Re8 {[%emt 0:06:14]} 42. Rd3 {[%emt 0:01:47]} Nb5 {[%emt 0:02:00]} 43. Rc2 {[%emt 0:16:49]} Ba3+ {[%emt 0:09:38]} 44. Ka2 {[%emt 0:04:12]} Ra8 {[%emt 0:01:31]} 45. Kb1 {[%emt 0:02:16]} Be7 {[%emt 0:00:19]} 46. Ra2 {[%emt 0:03:53]} Na3+ {[%emt 0:06:43]} 47. Kb2 {[%emt 0:01:01]} Rg8 {[%emt 0:00:42]} 48. b4 {[%emt 0:00:57]} Bxb4 {[%emt 0:00:58]} 49. Raxa3 {[%emt 0:00:34]} Bxa3+ {[%emt 0:01:57]} 50. Rxa3 {[%emt 0:00:19]} Rg3 {[%emt 0:00:10]} 51. Kc3 {[%emt 0:00:41]} Rxh3 {[%emt 0:00:49]} 52. Kd4 {[%emt 0:00:11]} Rxf3 {[%emt 0:00:05]} 53. Ra7 {[%emt 0:00:35]} h5 {[%emt 0:01:56]} 54. Ke5 {[%emt 0:00:36]} h4 {[%emt 0:00:31]} 55. Ra4 {[%emt 0:00:35]} h3 {[%emt 0:01:16]} 56. Rh4+ {[%emt 0:00:05]} Kg7 {[%emt 0:00:08]} 57. e4 {[%emt 0:00:26]} Kg6 {[%emt 0:03:37]} 58. exf5+ {[%emt 0:00:28]} Kg5 59. Rh8 {[%emt 0:00:23]} Re3+ {[%emt 0:00:50]} 60. Kd4 {[%emt 0:00:22]} Ra3 {[%emt 0:00:05]} 61. Ke4 {[%emt 0:00:47]} Rb3 {[%emt 0:01:27]} 62. f6 {[%emt 0:00:54]} Kxf6 {[%emt 0:00:23]} 63. Kf4 {[%emt 0:00:18]} Kg7 {[%emt 0:00:13]} 64. Rh5 {[%emt 0:00:17]} Kg6 {[%emt 0:00:10]} 65. Rh8 {[%emt 0:00:10]} Kg7 {[%emt 0:01:04]} 66. Rh5 {[%emt 0:00:10]} 1/2-1/2

[Event "Cracovia Festival-A 2023"]
[Site "Krakow"]
[Date "2023.12.28"]
[Round "2.21"]
[White "Golubka, Petro"]
[Black "Keinanen, Anastasia"]
[Result "1-0"]
[ECO "D45"]
[WhiteElo "2440"]
[BlackElo "2227"]
[Annotator "ChessBase"]
[PlyCount "105"]
[EventDate "2023.12.24"]
[EventType "swiss"]
[EventCountry "POL"]
[SourceTitle "playchess.com"]
[Source "ChessBase"]
[SourceQuality "1"]
[TimeControl "40/5400+30:1800+30"]

1. d4 {[%emt 0:03:45]} d5 {[%emt 0:00:14]} 2. c4 {[%emt 0:00:09]} e6 {[%emt 0:00:05]} 3. Nc3 {[%emt 0:00:09]} c6 {[%emt 0:01:34]} 4. e3 {[%emt 0:00:19]} Nf6 {[%emt 0:00:24]} 5. Nf3 {[%emt 0:00:43]} Nbd7 {[%emt 0:00:37]} 6. Qc2 {[%emt 0:00:05]} Bd6 {[%emt 0:02:05]} 7. g4 {[%emt 0:00:09]} h6 {[%emt 0:05:37]} 8. Rg1 {[%emt 0:00:59]} Qe7 {[%emt 0:10:45]} 9. h4 {[%emt 0:00:19]} a6 {[%emt 0:13:35]} 10. g5 {[%emt 0:03:24]} hxg5 {[%emt 0:00:17]} 11. hxg5 {[%emt 0:00:17]} Nh5 {[%emt 0:01:38]} 12. g6 {[%emt 0:01:59]} f5 {[%emt 0:06:53]} 13. Ng5 {[%emt 0:05:17]} Ng3 {[%emt 0:17:46]} 14. e4 {[%emt 0:11:41]} Nxe4 {[%emt 0:05:46]} 15. Ncxe4 {[%emt 0:01:33]} fxe4 {[%emt 0:07:56]} 16. Nf7 {[%emt 0:00:37]} Bb4+ {[%emt 0:05:21]} 17. Kd1 {[%emt 0:00:38]} Rf8 {[%emt 0:02:49]} 18. c5 {[%emt 0:08:40]} Rxf7 {[%emt 0:07:56]} 19. gxf7+ {[%emt 0:00:11]} Qxf7 {[%emt 0:00:01]} 20. Be2 {[%emt 0:00:34]} Ba5 {[%emt 0:02:10]} 21. Be3 {[%emt 0:00:22]} Bd8 {[%emt 0:02:02]} 22. Rh1 {[%emt 0:01:12]} Bf6 {[%emt 0:00:57]} 23. f4 {[%emt 0:01:01]} exf3 {[%emt 0:00:59]} 24. Bxf3 {[%emt 0:00:08]} Nf8 {[%emt 0:00:13]} 25. Qf2 {[%emt 0:02:40]} Bd7 {[%emt 0:01:28]} 26. Bh5 {[%emt 0:06:57]} g6 {[%emt 0:00:03]} 27. Rf1 {[%emt 0:00:29]} Nh7 {[%emt 0:00:39]} 28. Be2 {[%emt 0:00:17]} Qg7 {[%emt 0:01:15]} 29. Bd3 {[%emt 0:02:27]} O-O-O {[%emt 0:00:24]} 30. Rg1 {[%emt 0:01:26]} Be8 {[%emt 0:02:03]} 31. Kc2 {[%emt 0:00:15]} e5 {[%emt 0:00:51]} 32. Raf1 {[%emt 0:00:11]} e4 {[%emt 0:00:42]} 33. Be2 {[%emt 0:00:07]} Be7 {[%emt 0:01:09]} 34. Bg4+ {[%emt 0:00:58]} Bd7 {[%emt 0:00:26]} 35. Qf7 {[%emt 0:00:12]} Rg8 {[%emt 0:00:31]} 36. Qxg7 {[%emt 0:01:31]} Rxg7 {[%emt 0:00:11]} 37. Bh6 {[%emt 0:00:07]} Rg8 {[%emt 0:00:29]} 38. Rf7 {[%emt 0:00:23]} Nf6 {[%emt 0:00:40]} 39. Be2 {[%emt 0:01:12]} Bd8 {[%emt 0:00:44]} 40. Bg5 {[%emt 0:00:00]} Be6 {[%emt 0:00:00]} 41. Rxf6 {[%emt 0:00:39]} Bxf6 {[%emt 0:02:46]} 42. Bxf6 {[%emt 0:00:46]} Bf5 {[%emt 0:00:21]} 43. Kd2 {[%emt 0:00:41]} Kd7 {[%emt 0:00:27]} 44. Rh1 {[%emt 0:05:29]} g5 {[%emt 0:01:29]} 45. Be5 {[%emt 0:00:08]} g4 {[%emt 0:02:09]} 46. Bg3 {[%emt 0:00:13]} Kc8 {[%emt 0:03:39]} 47. Ke3 {[%emt 0:01:06]} b5 {[%emt 0:00:21]} 48. cxb6 {[%emt 0:00:36]} Kb7 {[%emt 0:00:06]} 49. Rf1 {[%emt 0:00:16]} Bc8 {[%emt 0:01:13]} 50. Rf7+ {[%emt 0:00:18]} Kxb6 {[%emt 0:00:07]} 51. b4 {[%emt 0:00:19]} a5 {[%emt 0:02:23]} 52. Bd6 {[%emt 0:00:09]} axb4 {[%emt 0:03:04]} 53. Bc5+ {[%emt 0:00:10]} 1-0